[Event "Titled Tuesday Blitz June 13 Early 2023"]
[White "Parondo, Rolly"]
[Black "Begunov, Konstantin"]
[WhiteFideId "5217407"]
[BlackFideId "4118510"]
[WhiteElo "2141"]
[BlackElo "1993"]
[Result "1-0"]
[Round "7"]
[TimeControl "180+2"]
[Date "2023.06.13"]
[WhiteClock "0:00:18"]
[BlackClock "0:00:09"]
[Board "113"]

1. d4 {[%clk 0:03:00]}  d5 {[%clk 0:02:59]} 2. Bf4 {[%clk 0:02:55]}  c6 {[%clk 0:03:00]} 3. e3 {[%clk 0:02:54]}  Nf6 {[%clk 0:02:59]} 4. Nd2 {[%clk 0:02:51]}  Bg4 {[%clk 0:02:59]} 5. f3 {[%clk 0:02:50]}  Bf5 {[%clk 0:02:58]} 6. g4 {[%clk 0:02:49]}  Bg6 {[%clk 0:02:58]} 7. h4 {[%clk 0:02:48]}  h5 {[%clk 0:02:57]} 8. g5 {[%clk 0:02:48]}  Nfd7 {[%clk 0:02:56]} 9. Nh3 {[%clk 0:02:36]}  e6 {[%clk 0:02:55]} 10. Bg3 {[%clk 0:02:37]}  Bf5 {[%clk 0:02:47]} 11. Nf4 {[%clk 0:02:29]}  c5 {[%clk 0:02:40]} 12. c3 {[%clk 0:02:29]}  Nc6 {[%clk 0:02:39]} 13. Bb5 {[%clk 0:02:21]}  cxd4 {[%clk 0:02:38]} 14. exd4 {[%clk 0:02:20]}  Qb6 {[%clk 0:02:37]} 15. Qb3 {[%clk 0:02:15]}  g6 {[%clk 0:02:27]} 16. Ne2 {[%clk 0:01:40]}  Bc2 {[%clk 0:02:18]} 17. Qxc2 {[%clk 0:01:39]}  Qxb5 {[%clk 0:02:18]} 18. Kf2 {[%clk 0:01:32]}  Be7 {[%clk 0:02:16]} 19. Qb3 {[%clk 0:01:29]}  Qb6 {[%clk 0:02:07]} 20. Rhe1 {[%clk 0:01:29]}  O-O {[%clk 0:01:52]} 21. Qxb6 {[%clk 0:01:27]}  Nxb6 {[%clk 0:01:52]} 22. a3 {[%clk 0:01:27]}  Na5 {[%clk 0:01:50]} 23. Bc7 {[%clk 0:01:25]}  Nac4 {[%clk 0:01:46]} 24. Bxb6 {[%clk 0:01:23]}  Nxd2 {[%clk 0:01:37]} 25. Bc7 {[%clk 0:01:24]}  Rac8 {[%clk 0:01:31]} 26. Bg3 {[%clk 0:01:23]}  Nc4 {[%clk 0:01:27]} 27. Ra2 {[%clk 0:01:23]}  a5 {[%clk 0:01:23]} 28. Nf4 {[%clk 0:01:23]}  Rc6 {[%clk 0:01:16]} 29. a4 {[%clk 0:01:23]}  Rb6 {[%clk 0:01:13]} 30. Re2 {[%clk 0:01:23]}  Rb3 {[%clk 0:01:09]} 31. Nd3 {[%clk 0:01:20]}  Rc8 {[%clk 0:01:09]} 32. Nc1 {[%clk 0:01:17]}  Rb6 {[%clk 0:01:08]} 33. Nd3 {[%clk 0:01:13]}  Kf8 {[%clk 0:01:05]} 34. Rc2 {[%clk 0:01:09]}  Ke8 {[%clk 0:01:04]} 35. Ke2 {[%clk 0:01:10]}  Kd8 {[%clk 0:01:03]} 36. Ne5 {[%clk 0:01:08]}  Nxe5 {[%clk 0:01:02]} 37. Bxe5 {[%clk 0:01:08]}  Kd7 {[%clk 0:00:59]} 38. Kd3 {[%clk 0:01:08]}  Rb3 {[%clk 0:00:59]} 39. Re2 {[%clk 0:01:04]}  Rc6 {[%clk 0:00:58]} 40. Kc2 {[%clk 0:01:01]}  Rbb6 {[%clk 0:00:54]} 41. Ra1 {[%clk 0:00:53]}  Rc4 {[%clk 0:00:54]} 42. b3 {[%clk 0:00:44]}  Rc8 {[%clk 0:00:53]} 43. Kb2 {[%clk 0:00:45]}  Rbc6 {[%clk 0:00:52]} 44. Re3 {[%clk 0:00:43]}  Bf8 {[%clk 0:00:47]} 45. Rae1 {[%clk 0:00:42]}  Be7 {[%clk 0:00:43]} 46. R1e2 {[%clk 0:00:42]}  Bd8 {[%clk 0:00:43]} 47. Rd3 {[%clk 0:00:36]}  Ra8 {[%clk 0:00:42]} 48. Rc2 {[%clk 0:00:34]}  Rac8 {[%clk 0:00:41]} 49. Rd1 {[%clk 0:00:33]}  b6 {[%clk 0:00:39]} 50. Rdc1 {[%clk 0:00:34]}  Ra8 {[%clk 0:00:39]} 51. c4 {[%clk 0:00:34]}  Rac8 {[%clk 0:00:37]} 52. Bf6 {[%clk 0:00:26]}  Bc7 {[%clk 0:00:30]} 53. Be5 {[%clk 0:00:26]}  Bxe5 {[%clk 0:00:20]} 54. dxe5 {[%clk 0:00:26]}  dxc4 {[%clk 0:00:20]} 55. bxc4 {[%clk 0:00:25]}  Kc7 {[%clk 0:00:19]} 56. c5 {[%clk 0:00:25]}  Kb7 {[%clk 0:00:18]} 57. Rd2 {[%clk 0:00:16]}  Rxc5 {[%clk 0:00:17]} 58. Rxc5 {[%clk 0:00:16]}  Rxc5 {[%clk 0:00:18]} 59. f4 {[%clk 0:00:17]}  Rd5 {[%clk 0:00:18]} 60. Rxd5 {[%clk 0:00:15]}  exd5 {[%clk 0:00:17]} 61. f5 {[%clk 0:00:16]}  gxf5 {[%clk 0:00:14]} 62. e6 {[%clk 0:00:16]}  fxe6 {[%clk 0:00:10]} 63. g6 {[%clk 0:00:16]}  f4 {[%clk 0:00:10]} 64. g7 {[%clk 0:00:17]}  f3 {[%clk 0:00:10]} 65. g8=Q {[%clk 0:00:18]}  f2 {[%clk 0:00:09]} 66. Qg2 {[%clk 0:00:18]} 1-0


[Site "https://www.chess.com"]

[Event "Titled Tuesday Blitz June 13 Early 2023"]
[White "sebastianmarinp"]
[Black "MKlose11"]
[WhiteElo "2393"]
[BlackElo "2536"]
[Result "0-1"]
[Round "7"]
[TimeControl "180+2"]
[Date "2023.06.13"]
[WhiteClock "0:00:12"]
[BlackClock "0:00:17"]
[Board "114"]

1. e4 {[%clk 0:03:00]}  e6 {[%clk 0:02:55]} 2. d4 {[%clk 0:02:57]}  d5 {[%clk 0:02:55]} 3. Nc3 {[%clk 0:02:57]}  Bb4 {[%clk 0:02:51]} 4. e5 {[%clk 0:02:57]}  Ne7 {[%clk 0:02:46]} 5. a3 {[%clk 0:02:57]}  Bxc3+ {[%clk 0:02:46]} 6. bxc3 {[%clk 0:02:58]}  b6 {[%clk 0:02:47]} 7. Qg4 {[%clk 0:02:39]}  Ng6 {[%clk 0:02:47]} 8. h4 {[%clk 0:02:35]}  h5 {[%clk 0:02:46]} 9. Qg3 {[%clk 0:02:35]}  Ba6 {[%clk 0:02:45]} 10. Ne2 {[%clk 0:02:23]}  Qd7 {[%clk 0:02:39]} 11. a4 {[%clk 0:02:14]}  Nc6 {[%clk 0:02:27]} 12. Nf4 {[%clk 0:02:12]}  Bxf1 {[%clk 0:02:26]} 13. Nxg6 {[%clk 0:02:08]}  fxg6 {[%clk 0:02:22]} 14. Qxg6+ {[%clk 0:02:09]}  Qf7 {[%clk 0:02:23]} 15. Qxf7+ {[%clk 0:02:07]}  Kxf7 {[%clk 0:02:24]} 16. Kxf1 {[%clk 0:02:04]}  Na5 {[%clk 0:02:23]} 17. Rh3 {[%clk 0:02:01]}  Nc4 {[%clk 0:02:21]} 18. Bg5 {[%clk 0:01:52]}  a5 {[%clk 0:02:20]} 19. Rd1 {[%clk 0:01:45]}  Rhf8 {[%clk 0:02:18]} 20. Rdd3 {[%clk 0:01:39]}  Nb2 {[%clk 0:02:12]} 21. Rdg3 {[%clk 0:01:37]}  Nxa4 {[%clk 0:02:08]} 22. Bc1 {[%clk 0:01:34]}  b5 {[%clk 0:02:04]} 23. Rg5 {[%clk 0:01:31]}  Nb6 {[%clk 0:01:47]} 24. Ba3 {[%clk 0:01:23]}  Rg8 {[%clk 0:01:02]} 25. Rf3+ {[%clk 0:01:22]}  Ke8 {[%clk 0:01:01]} 26. Rg6 {[%clk 0:01:22]}  Nc4 {[%clk 0:00:49]} 27. Bc5 {[%clk 0:01:13]}  a4 {[%clk 0:00:45]} 28. Rxe6+ {[%clk 0:01:11]}  Kd7 {[%clk 0:00:45]} 29. Re7+ {[%clk 0:01:10]}  Kc6 {[%clk 0:00:46]} 30. Rff7 {[%clk 0:01:09]}  Rgc8 {[%clk 0:00:45]} 31. Rxg7 {[%clk 0:00:27]}  a3 {[%clk 0:00:45]} 32. Re6+ {[%clk 0:00:21]}  Kb7 {[%clk 0:00:44]} 33. Bxa3 {[%clk 0:00:20]}  Rxa3 {[%clk 0:00:45]} 34. Rd7 {[%clk 0:00:19]}  Rxc3 {[%clk 0:00:41]} 35. Rxd5 {[%clk 0:00:19]}  c6 {[%clk 0:00:32]} 36. Rd7+ {[%clk 0:00:18]}  Kb6 {[%clk 0:00:31]} 37. d5 {[%clk 0:00:18]}  Rxc2 {[%clk 0:00:26]} 38. d6 {[%clk 0:00:17]}  Ra8 {[%clk 0:00:19]} 39. g4 {[%clk 0:00:17]}  Ra1+ {[%clk 0:00:17]} 40. Kg2 {[%clk 0:00:16]}  Ne3+ {[%clk 0:00:18]} 41. Kf3 {[%clk 0:00:16]}  Nxg4 {[%clk 0:00:19]} 42. Ree7 {[%clk 0:00:14]}  Rxf2+ {[%clk 0:00:18]} 43. Kg3 {[%clk 0:00:12]}  Ra3# {[%clk 0:00:17]} 0-1


[Site "https://www.chess.com"]

[Event "Titled Tuesday Blitz June 13 Early 2023"]
[White "Ozalp, Burak"]
[Black "Parpiev, Isaak"]
[WhiteFideId "6314210"]
[BlackFideId "34281576"]
[WhiteElo "2106"]
[BlackElo "2167"]
[Result "0-1"]
[Round "7"]
[TimeControl "180+2"]
[Date "2023.06.13"]
[WhiteClock "0:00:02"]
[BlackClock "0:00:42"]
[Board "115"]

1. Nf3 {[%clk 0:03:00]}  Nf6 {[%clk 0:02:56]} 2. g3 {[%clk 0:02:59]}  g6 {[%clk 0:02:57]} 3. Bg2 {[%clk 0:02:59]}  Bg7 {[%clk 0:02:58]} 4. O-O {[%clk 0:02:59]}  O-O {[%clk 0:02:58]} 5. d4 {[%clk 0:03:00]}  d6 {[%clk 0:02:59]} 6. a4 {[%clk 0:03:00]}  a5 {[%clk 0:02:59]} 7. Nc3 {[%clk 0:03:00]}  Nc6 {[%clk 0:02:59]} 8. e4 {[%clk 0:02:59]}  Bg4 {[%clk 0:02:54]} 9. Be3 {[%clk 0:02:59]}  Nd7 {[%clk 0:02:53]} 10. h3 {[%clk 0:02:51]}  Bxf3 {[%clk 0:02:52]} 11. Bxf3 {[%clk 0:02:52]}  e5 {[%clk 0:02:52]} 12. d5 {[%clk 0:02:51]}  Nd4 {[%clk 0:02:53]} 13. Bg2 {[%clk 0:02:51]}  f5 {[%clk 0:02:53]} 14. f4 {[%clk 0:02:47]}  c5 {[%clk 0:02:46]} 15. dxc6 {[%clk 0:02:39]}  bxc6 {[%clk 0:02:46]} 16. Ne2 {[%clk 0:02:33]}  Nxe2+ {[%clk 0:02:38]} 17. Qxe2 {[%clk 0:02:34]}  fxe4 {[%clk 0:02:38]} 18. Qc4+ {[%clk 0:02:17]}  d5 {[%clk 0:02:32]} 19. Qxc6 {[%clk 0:02:17]}  d4 {[%clk 0:02:22]} 20. fxe5 {[%clk 0:01:34]}  Nxe5 {[%clk 0:01:57]} 21. Qe6+ {[%clk 0:01:25]}  Kh8 {[%clk 0:01:57]} 22. Bh6 {[%clk 0:01:25]}  Bxh6 {[%clk 0:01:38]} 23. Qxe5+ {[%clk 0:01:21]}  Bg7 {[%clk 0:01:39]} 24. Qxe4 {[%clk 0:01:17]}  Rb8 {[%clk 0:01:40]} 25. Rxf8+ {[%clk 0:01:16]}  Qxf8 {[%clk 0:01:38]} 26. Rf1 {[%clk 0:01:13]}  Qd6 {[%clk 0:01:38]} 27. Qf4 {[%clk 0:00:38]}  Qxf4 {[%clk 0:01:35]} 28. Rxf4 {[%clk 0:00:30]}  Rxb2 {[%clk 0:01:36]} 29. Re4 {[%clk 0:00:28]}  Bf6 {[%clk 0:01:33]} 30. Re6 {[%clk 0:00:22]}  Kg7 {[%clk 0:01:32]} 31. Be4 {[%clk 0:00:22]}  Ra2 {[%clk 0:01:28]} 32. Kf2 {[%clk 0:00:12]}  Rxa4 {[%clk 0:01:27]} 33. Kf3 {[%clk 0:00:12]}  Ra3+ {[%clk 0:01:24]} 34. Kf4 {[%clk 0:00:12]}  Rc3 {[%clk 0:01:16]} 35. g4 {[%clk 0:00:12]}  Rc5 {[%clk 0:01:14]} 36. Ra6 {[%clk 0:00:10]}  Bg5+ {[%clk 0:01:08]} 37. Kf3 {[%clk 0:00:10]}  Rc3+ {[%clk 0:01:09]} 38. Bd3 {[%clk 0:00:10]}  Ra3 {[%clk 0:01:06]} 39. Ke4 {[%clk 0:00:10]}  Bf6 {[%clk 0:00:54]} 40. g5 {[%clk 0:00:10]}  Bxg5 {[%clk 0:00:54]} 41. Kxd4 {[%clk 0:00:11]}  Ra1 {[%clk 0:00:53]} 42. Kc4 {[%clk 0:00:11]}  a4 {[%clk 0:00:52]} 43. Kb4 {[%clk 0:00:11]}  a3 {[%clk 0:00:52]} 44. Kb3 {[%clk 0:00:09]}  Bc1 {[%clk 0:00:50]} 45. c4 {[%clk 0:00:08]}  Bb2 {[%clk 0:00:46]} 46. c5 {[%clk 0:00:07]}  Rc1 {[%clk 0:00:46]} 47. c6 {[%clk 0:00:08]}  Rc3+ {[%clk 0:00:47]} 48. Kb4 {[%clk 0:00:07]}  Rxd3 {[%clk 0:00:47]} 49. c7 {[%clk 0:00:08]}  Rc3 {[%clk 0:00:46]} 50. Ra7 {[%clk 0:00:03]}  Kh6 {[%clk 0:00:46]} 51. Kb5 {[%clk 0:00:04]}  Bc1 {[%clk 0:00:41]} 52. Kb6 {[%clk 0:00:04]}  Be3+ {[%clk 0:00:41]} 53. Kb7 {[%clk 0:00:03]}  Bxa7 {[%clk 0:00:42]} 54. c8=Q {[%clk 0:00:02]}  Rxc8 {[%clk 0:00:42]} 0-1


[Site "https://www.chess.com"]

[Event "Titled Tuesday Blitz June 13 Early 2023"]
[White "Xie, Bryan"]
[Black "Sowul, Bartosz"]
[WhiteFideId "30941296"]
[BlackFideId "1137590"]
[WhiteElo "2033"]
[BlackElo "2188"]
[Result "1/2-1/2"]
[Round "7"]
[TimeControl "180+2"]
[Date "2023.06.13"]
[WhiteClock "0:00:04"]
[BlackClock "0:00:14"]
[Board "116"]

1. e4 {[%clk 0:02:56]}  c5 {[%clk 0:02:59]} 2. Nf3 {[%clk 0:02:56]}  d6 {[%clk 0:02:58]} 3. d4 {[%clk 0:02:57]}  cxd4 {[%clk 0:02:59]} 4. Nxd4 {[%clk 0:02:58]}  Nf6 {[%clk 0:02:59]} 5. Nc3 {[%clk 0:02:58]}  Nc6 {[%clk 0:03:00]} 6. Bg5 {[%clk 0:02:52]}  g6 {[%clk 0:02:59]} 7. Bxf6 {[%clk 0:02:51]}  exf6 {[%clk 0:03:00]} 8. Qd2 {[%clk 0:02:49]}  Bg7 {[%clk 0:02:59]} 9. Ndb5 {[%clk 0:02:49]}  O-O {[%clk 0:02:54]} 10. Nxd6 {[%clk 0:02:32]}  f5 {[%clk 0:02:25]} 11. exf5 {[%clk 0:02:18]}  Bxf5 {[%clk 0:01:50]} 12. Nxf5 {[%clk 0:02:10]}  gxf5 {[%clk 0:01:51]} 13. Qxd8 {[%clk 0:01:52]}  Raxd8 {[%clk 0:01:52]} 14. Bd3 {[%clk 0:01:52]}  Rfe8+ {[%clk 0:01:48]} 15. Kf1 {[%clk 0:01:51]}  f4 {[%clk 0:01:39]} 16. Re1 {[%clk 0:01:34]}  Bxc3 {[%clk 0:01:25]} 17. bxc3 {[%clk 0:01:25]}  Ne5 {[%clk 0:01:23]} 18. Bb5 {[%clk 0:01:21]}  Re6 {[%clk 0:01:20]} 19. f3 {[%clk 0:01:12]}  Rd2 {[%clk 0:00:51]} 20. Ba4 {[%clk 0:00:54]}  Kg7 {[%clk 0:00:47]} 21. Bb3 {[%clk 0:00:43]}  Re7 {[%clk 0:00:45]} 22. Re4 {[%clk 0:00:35]}  Rd1+ {[%clk 0:00:42]} 23. Re1 {[%clk 0:00:36]}  Rxe1+ {[%clk 0:00:40]} 24. Kxe1 {[%clk 0:00:36]}  Nxf3+ {[%clk 0:00:35]} 25. Kf2 {[%clk 0:00:34]}  Nd2 {[%clk 0:00:34]} 26. Rd1 {[%clk 0:00:35]}  Ne4+ {[%clk 0:00:33]} 27. Kf3 {[%clk 0:00:34]}  Nxc3 {[%clk 0:00:33]} 28. Rd3 {[%clk 0:00:30]}  Ne2 {[%clk 0:00:31]} 29. Bd5 {[%clk 0:00:17]}  b6 {[%clk 0:00:28]} 30. a4 {[%clk 0:00:17]}  Kg6 {[%clk 0:00:26]} 31. c4 {[%clk 0:00:16]}  f5 {[%clk 0:00:25]} 32. Ra3 {[%clk 0:00:14]}  Kg5 {[%clk 0:00:25]} 33. a5 {[%clk 0:00:14]}  Nd4+ {[%clk 0:00:25]} 34. Kf2 {[%clk 0:00:14]}  Re2+ {[%clk 0:00:26]} 35. Kf1 {[%clk 0:00:14]}  Rd2 {[%clk 0:00:26]} 36. axb6 {[%clk 0:00:14]}  axb6 {[%clk 0:00:26]} 37. Ra7 {[%clk 0:00:12]}  Nc2 {[%clk 0:00:25]} 38. Rxh7 {[%clk 0:00:04]}  Ne3+ {[%clk 0:00:20]} 39. Ke1 {[%clk 0:00:04]}  Rd1+ {[%clk 0:00:14]} 40. Ke2 {[%clk 0:00:04]}  Rb1 {[%clk 0:00:12]} 41. Rg7+ {[%clk 0:00:04]}  Kf6 {[%clk 0:00:13]} 42. Rd7 {[%clk 0:00:03]}  Ke5 {[%clk 0:00:12]} 43. Re7+ {[%clk 0:00:02]}  Kd4 {[%clk 0:00:12]} 44. Rc7 {[%clk 0:00:02]}  Rb2+ {[%clk 0:00:12]} 45. Kf3 {[%clk 0:00:02]}  Nxd5 {[%clk 0:00:12]} 46. cxd5 {[%clk 0:00:02]}  Kxd5 {[%clk 0:00:13]} 47. Kxf4 {[%clk 0:00:03]}  Rxg2 {[%clk 0:00:13]} 48. Rh7 {[%clk 0:00:03]}  Rf2+ {[%clk 0:00:12]} 49. Ke3 {[%clk 0:00:03]}  Rf1 {[%clk 0:00:12]} 50. h4 {[%clk 0:00:04]}  b5 {[%clk 0:00:12]} 51. h5 {[%clk 0:00:04]}  b4 {[%clk 0:00:12]} 52. h6 {[%clk 0:00:05]}  Rh1 {[%clk 0:00:12]} 53. Kf4 {[%clk 0:00:03]}  Kc4 {[%clk 0:00:12]} 54. Kxf5 {[%clk 0:00:03]}  b3 {[%clk 0:00:12]} 55. Kg6 {[%clk 0:00:04]}  b2 {[%clk 0:00:12]} 56. Rc7+ {[%clk 0:00:04]}  Kb3 {[%clk 0:00:13]} 57. Rb7+ {[%clk 0:00:05]}  Kc2 {[%clk 0:00:13]} 58. h7 {[%clk 0:00:05]}  Rxh7 {[%clk 0:00:12]} 59. Kxh7 {[%clk 0:00:04]}  b1=Q {[%clk 0:00:13]} 60. Rxb1 {[%clk 0:00:04]}  Kxb1 {[%clk 0:00:14]} 1/2-1/2


[Site "https://www.chess.com"]

[Event "Titled Tuesday Blitz June 13 Early 2023"]
[White "Liu, Casper"]
[Black "Goldin, Roman"]
[WhiteFideId "1454153"]
[BlackFideId "2803860"]
[WhiteElo "2221"]
[BlackElo "2312"]
[Result "1-0"]
[Round "7"]
[TimeControl "180+2"]
[Date "2023.06.13"]
[WhiteClock "0:02:17"]
[BlackClock "0:00:04"]
[Board "117"]

1. e4 {[%clk 0:03:00]}  Nc6 {[%clk 0:02:59]} 2. Bc4 {[%clk 0:02:59]}  Nf6 {[%clk 0:02:57]} 3. Nc3 {[%clk 0:02:59]}  Nxe4 {[%clk 0:02:56]} 4. Nxe4 {[%clk 0:02:54]}  d5 {[%clk 0:02:55]} 5. Bd3 {[%clk 0:02:44]}  dxe4 {[%clk 0:02:55]} 6. Bxe4 {[%clk 0:02:45]}  e5 {[%clk 0:02:46]} 7. Nf3 {[%clk 0:02:45]}  Bd6 {[%clk 0:02:46]} 8. O-O {[%clk 0:02:46]}  O-O {[%clk 0:02:45]} 9. d3 {[%clk 0:02:46]}  Bd7 {[%clk 0:02:41]} 10. Re1 {[%clk 0:02:46]}  Re8 {[%clk 0:02:31]} 11. Ng5 {[%clk 0:02:46]}  g6 {[%clk 0:02:02]} 12. Nxh7 {[%clk 0:02:41]}  Be7 {[%clk 0:01:08]} 13. Qf3 {[%clk 0:02:41]}  Nd4 {[%clk 0:01:00]} 14. Qe3 {[%clk 0:02:34]}  Nxc2 {[%clk 0:00:32]} 15. Qh6 {[%clk 0:02:34]}  Bf6 {[%clk 0:00:14]} 16. Bg5 {[%clk 0:02:29]}  Bg7 {[%clk 0:00:10]} 17. Qh4 {[%clk 0:02:29]}  f6 {[%clk 0:00:06]} 18. Nxf6+ {[%clk 0:02:27]}  Bxf6 {[%clk 0:00:04]} 19. Bxf6 {[%clk 0:02:27]}  Qxf6 {[%clk 0:00:03]} 20. Qxf6 {[%clk 0:02:27]}  Nxe1 {[%clk 0:00:03]} 21. Qxg6+ {[%clk 0:02:26]}  Kf8 {[%clk 0:00:04]} 22. Qf6+ {[%clk 0:02:26]}  Kg8 {[%clk 0:00:04]} 23. Bd5+ {[%clk 0:02:26]}  Kh7 {[%clk 0:00:04]} 24. Qf7+ {[%clk 0:02:17]}  Kh6 {[%clk 0:00:04]} 1-0


[Site "https://www.chess.com"]

[Event "Titled Tuesday Blitz June 13 Early 2023"]
[White "Devaev, Alexander"]
[Black "Fernandez Siles, Luis"]
[WhiteFideId "4169395"]
[BlackFideId "2209420"]
[WhiteElo "2172"]
[BlackElo "2195"]
[Result "0-1"]
[Round "7"]
[TimeControl "180+2"]
[Date "2023.06.13"]
[WhiteClock "0:00:00"]
[BlackClock "0:00:14"]
[Board "118"]

1. d4 {[%clk 0:02:58]}  Nf6 {[%clk 0:02:59]} 2. c4 {[%clk 0:02:58]}  g6 {[%clk 0:03:00]} 3. Nc3 {[%clk 0:02:57]}  Bg7 {[%clk 0:03:00]} 4. e4 {[%clk 0:02:58]}  d6 {[%clk 0:03:00]} 5. Nf3 {[%clk 0:02:50]}  O-O {[%clk 0:03:00]} 6. h3 {[%clk 0:02:45]}  c5 {[%clk 0:02:59]} 7. d5 {[%clk 0:02:36]}  e6 {[%clk 0:02:57]} 8. Bd3 {[%clk 0:02:36]}  Na6 {[%clk 0:02:49]} 9. a3 {[%clk 0:02:24]}  Nc7 {[%clk 0:02:47]} 10. Bg5 {[%clk 0:02:22]}  h6 {[%clk 0:02:42]} 11. Be3 {[%clk 0:02:23]}  a6 {[%clk 0:02:17]} 12. Qd2 {[%clk 0:02:22]}  Kh7 {[%clk 0:02:17]} 13. b4 {[%clk 0:02:08]}  b6 {[%clk 0:02:08]} 14. Rb1 {[%clk 0:02:05]}  exd5 {[%clk 0:02:01]} 15. cxd5 {[%clk 0:01:57]}  Re8 {[%clk 0:01:57]} 16. O-O {[%clk 0:01:49]}  c4 {[%clk 0:01:53]} 17. Bc2 {[%clk 0:01:37]}  b5 {[%clk 0:01:45]} 18. Rfe1 {[%clk 0:01:34]}  Nd7 {[%clk 0:01:35]} 19. Bd4 {[%clk 0:01:28]}  Ne5 {[%clk 0:01:31]} 20. Nxe5 {[%clk 0:01:17]}  Bxe5 {[%clk 0:01:31]} 21. a4 {[%clk 0:01:07]}  Qg5 {[%clk 0:01:20]} 22. Qxg5 {[%clk 0:00:58]}  hxg5 {[%clk 0:01:20]} 23. Bxe5 {[%clk 0:00:56]}  Rxe5 {[%clk 0:01:19]} 24. Ra1 {[%clk 0:00:41]}  Bd7 {[%clk 0:01:15]} 25. axb5 {[%clk 0:00:21]}  axb5 {[%clk 0:01:15]} 26. Rxa8 {[%clk 0:00:20]}  Nxa8 {[%clk 0:01:16]} 27. Ra1 {[%clk 0:00:19]}  Re8 {[%clk 0:00:58]} 28. Ra7 {[%clk 0:00:18]}  Rd8 {[%clk 0:00:55]} 29. Ra6 {[%clk 0:00:13]}  Be8 {[%clk 0:00:47]} 30. f3 {[%clk 0:00:12]}  Kg7 {[%clk 0:00:46]} 31. Kf2 {[%clk 0:00:12]}  Kf6 {[%clk 0:00:39]} 32. Ke3 {[%clk 0:00:11]}  Ke5 {[%clk 0:00:39]} 33. Ra5 {[%clk 0:00:11]}  Rb8 {[%clk 0:00:33]} 34. g3 {[%clk 0:00:11]}  f5 {[%clk 0:00:29]} 35. f4+ {[%clk 0:00:11]}  gxf4+ {[%clk 0:00:29]} 36. gxf4+ {[%clk 0:00:12]}  Kf6 {[%clk 0:00:29]} 37. Kd4 {[%clk 0:00:12]}  Nc7 {[%clk 0:00:25]} 38. e5+ {[%clk 0:00:12]}  dxe5+ {[%clk 0:00:25]} 39. fxe5+ {[%clk 0:00:13]}  Kg5 {[%clk 0:00:23]} 40. Ra7 {[%clk 0:00:13]}  Rc8 {[%clk 0:00:22]} 41. e6 {[%clk 0:00:12]}  Kf6 {[%clk 0:00:21]} 42. h4 {[%clk 0:00:09]}  Nxe6+ {[%clk 0:00:15]} 43. dxe6 {[%clk 0:00:08]}  Kxe6 {[%clk 0:00:15]} 44. Ra6+ {[%clk 0:00:09]}  Kf7 {[%clk 0:00:15]} 45. Nd5 {[%clk 0:00:09]}  Rd8 {[%clk 0:00:14]} 46. Rf6+ {[%clk 0:00:08]}  Kg7 {[%clk 0:00:14]} 47. Ke5 {[%clk 0:00:08]}  Rxd5+ {[%clk 0:00:13]} 48. Kxd5 {[%clk 0:00:06]}  Kxf6 {[%clk 0:00:14]} 49. Kc5 {[%clk 0:00:06]}  f4 {[%clk 0:00:14]} 50. Kd4 {[%clk 0:00:04]}  g5 {[%clk 0:00:15]} 51. hxg5+ {[%clk 0:00:04]}  Kxg5 {[%clk 0:00:15]} 52. Be4 {[%clk 0:00:00]}  Kg4 {[%clk 0:00:14]} 0-1


[Site "https://www.chess.com"]

[Event "Titled Tuesday Blitz June 13 Early 2023"]
[White "Bashirli, Saadat"]
[Black "Brunner, Nicolas"]
[WhiteFideId "13429990"]
[BlackFideId "620246"]
[WhiteElo "1408"]
[BlackElo "2319"]
[Result "0-1"]
[Round "7"]
[TimeControl "180+2"]
[Date "2023.06.13"]
[WhiteClock "0:00:17"]
[BlackClock "0:00:47"]
[Board "120"]

1. d4 {[%clk 0:03:00]}  Nf6 {[%clk 0:02:59]} 2. e3 {[%clk 0:03:00]}  d5 {[%clk 0:02:57]} 3. f4 {[%clk 0:03:00]}  Bg4 {[%clk 0:02:53]} 4. Nf3 {[%clk 0:02:58]}  e6 {[%clk 0:02:53]} 5. Bd3 {[%clk 0:02:57]}  Bd6 {[%clk 0:02:48]} 6. Nbd2 {[%clk 0:02:56]}  O-O {[%clk 0:02:46]} 7. O-O {[%clk 0:02:54]}  c5 {[%clk 0:02:46]} 8. c3 {[%clk 0:02:55]}  Nc6 {[%clk 0:02:45]} 9. h3 {[%clk 0:02:54]}  Bh5 {[%clk 0:02:34]} 10. b3 {[%clk 0:02:53]}  cxd4 {[%clk 0:02:22]} 11. cxd4 {[%clk 0:02:50]}  Nb4 {[%clk 0:02:15]} 12. Bb1 {[%clk 0:02:49]}  Bg6 {[%clk 0:02:15]} 13. Bb2 {[%clk 0:02:36]}  Rc8 {[%clk 0:02:11]} 14. a3 {[%clk 0:02:27]}  Nc2 {[%clk 0:02:09]} 15. Bxc2 {[%clk 0:02:18]}  Rxc2 {[%clk 0:02:08]} 16. Bc1 {[%clk 0:01:35]}  Qc7 {[%clk 0:02:05]} 17. Ne5 {[%clk 0:01:26]}  Rc8 {[%clk 0:02:03]} 18. Nxg6 {[%clk 0:01:17]}  hxg6 {[%clk 0:02:01]} 19. Nc4 {[%clk 0:01:17]}  Rxc1 {[%clk 0:02:00]} 20. Rxc1 {[%clk 0:01:16]}  dxc4 {[%clk 0:01:59]} 21. Rxc4 {[%clk 0:01:16]}  Qd7 {[%clk 0:01:58]} 22. Qc2 {[%clk 0:01:05]}  Rxc4 {[%clk 0:01:56]} 23. Qxc4 {[%clk 0:01:06]}  Bxa3 {[%clk 0:01:53]} 24. Ra1 {[%clk 0:01:06]}  Qe7 {[%clk 0:01:32]} 25. Qa4 {[%clk 0:01:04]}  Bb2 {[%clk 0:01:25]} 26. Rb1 {[%clk 0:01:03]}  Bc3 {[%clk 0:01:24]} 27. Qxa7 {[%clk 0:01:02]}  Nd5 {[%clk 0:01:23]} 28. Qb8+ {[%clk 0:00:47]}  Kh7 {[%clk 0:01:23]} 29. Qc8 {[%clk 0:00:47]}  Bd2 {[%clk 0:01:20]} 30. e4 {[%clk 0:00:40]}  Nxf4 {[%clk 0:01:19]} 31. Qc4 {[%clk 0:00:33]}  Qg5 {[%clk 0:00:59]} 32. Qf1 {[%clk 0:00:29]}  Nxh3+ {[%clk 0:00:55]} 33. Kh2 {[%clk 0:00:28]}  Bf4+ {[%clk 0:00:52]} 34. Kh1 {[%clk 0:00:27]}  Qg3 {[%clk 0:00:50]} 35. Qg1 {[%clk 0:00:17]}  Nxg1 {[%clk 0:00:49]} 36. Kxg1 {[%clk 0:00:17]}  Be3+ {[%clk 0:00:47]} 0-1


[Site "https://www.chess.com"]